Cogmind - Beta 9.6 @@@ ROGUE MODE // 2020.04.14 @ 13:35:53 Player: TBExtent Result: Escaped! Performance ------------- Evolutions (9) 4500 Regions Visited (24) 4800 Robots Destroyed (87) 435 Value Destroyed (2315) 2315 Prototype IDs (131) 2620 Alien Tech Used (2) 400 Bonus (10284) 10284 TOTAL SCORE: 25354 Bonus ------- Follower Combat Kills 153 Aligned with FarCom 300 Met Data Miner 300 Met Warlord at Base 500 MAIN.C Attacked Warlord 500 Met Warlord at Research 2000 Hacked God Mode 5000 Win 3000 Friendly Fire -1469 Cogmind --------- Core Integrity 1600/1600 Matter 290/300 Energy 138/190 System Corruption 0% Temperature Cool (12) Movement Flying (21) Location To Epsilon Eridani Parts ------- > --- POWER (1) -------- Light Quantum Reactor > --- PROPULSION (4) --- Cooled Q-thruster Cooled Q-thruster Cooled Q-thruster Cooled Q-thruster > --- UTILITY (18) ----- Medium Storage Unit Medium Storage Unit Advanced Signal Interpreter Advanced Target Analyzer Advanced Transmission Jammer Reaction Control System Improved Propulsion Shielding Hacking Suite Hacking Suite Hacking Suite Improved Hacking Suite Advanced Hacking Suite Advanced Hacking Suite Experimental Hacking Suite Experimental Hacking Suite System Shield Improved System Shield Ghost Barrier > --- WEAPON (2) ------- Makeshift Axe Phasing Sabre > --- INVENTORY (12) --- Light Quantum Reactor Improved Cesium-ion Thruster Experimental Cesium-ion Thruster Cooled Field Propulsion Drive Electron Diverter Electron Diverter Impulse Thruster Array Impulse Thruster Array Advanced Datajack Advanced Remote Datajack Peak State ------------ > --- POWER ------------ Light Quantum Reactor > --- PROPULSION ------- Cooled Q-thruster Cooled Q-thruster Cooled Q-thruster Cooled Q-thruster > --- UTILITY ---------- Medium Storage Unit Medium Storage Unit Advanced Signal Interpreter Advanced Target Analyzer Advanced Transmission Jammer Reaction Control System Improved Propulsion Shielding Hacking Suite Hacking Suite Hacking Suite Improved Hacking Suite Advanced Hacking Suite Advanced Hacking Suite Experimental Hacking Suite Experimental Hacking Suite System Shield Improved System Shield Ghost Barrier > --- WEAPON ----------- Makeshift Axe Phasing Sabre > --- INVENTORY -------- Light Quantum Reactor Improved Cesium-ion Thruster Experimental Cesium-ion Thruster Cooled Field Propulsion Drive Electron Diverter Electron Diverter Impulse Thruster Array Impulse Thruster Array Advanced Datajack Advanced Remote Datajack [Rating: 156] Favorites ----------- Power Light Angular Momentum Engine Engine Light Angular Momentum Engine Power Core Light Nuclear Core Reactor Light Antimatter Reactor Propulsion Carbon-fiber Leg Treads Light Treads Leg Carbon-fiber Leg Flight Unit Improved Flight Unit Utility Hacking Suite Device Improved Cooling System Storage High-capacity Storage Unit Processor Advanced Signal Interpreter Hackware Hacking Suite Protection Hardened Light Armor Plating Weapon Improved EM Shotgun Energy Gun Improved EM Shotgun Ballistic Gun Minigun Ballistic Cannon Improved Light Cannon Launcher Rocket Launcher Special Weapon Advanced Remote Datajack Impact Weapon Great Maul Slashing Weapon Chainsword Piercing Weapon Enhanced Force Lance Special Melee Weapon Improved Datajack Build | -11 -10 -10 -10 -9 -8 -7 -6 -6 -6 -6 -5 -5 -5 -5 -5 -4 -4 -4 -4 -4 -3 -3 -2 -1 ------- Run | Scr Mat Min Exi Min Mat Fac Fac Low Low Dat Pro Fac Upp Upp Zhi Pro Fac Upp Upp War Pro Res Res Acc Slots Evolved 18 | . . . . . 4 2 2 . . . . 2 . . . . 2 . . . . 2 2 2 Power . | . . . . . . . . . . . . . . . . . . . . . . . . . Propulsion 2 | . . . . . 1 . . . . . . . . . . . 1 . . . . . . . Utility 16 | . . . . . 3 2 2 . . . . 2 . . . . 1 . . . . 2 2 2 Weapon . | . . . . . . . . . . . . . . . . . . . . . . . . . Parts Attached 167 | 3 14 3 1 2 40 20 7 . . 3 . 12 1 . 2 4 6 2 . 11 . 14 11 11 Power 16 | 1 1 1 . . 4 3 . . . . . 1 . . 2 1 . . . . . 1 1 . Engine 10 | 1 1 1 . . 4 1 . . . . . 1 . . 1 . . . . . . . . . Core 2 | . . . . . . 2 . . . . . . . . . . . . . . . . . . Reactor 4 | . . . . . . . . . . . . . . . 1 1 . . . . . 1 1 . Propulsion 36 | 2 2 2 . . 7 4 . . . . . 3 . . . 1 1 . . 3 . 1 7 3 Treads 6 | 2 2 . . . . . . . . . . . . . . . . . . . . . 2 . Leg 10 | . . 2 . . 7 . . . . . . . . . . . . . . . . . 1 . Wheel . | . . . . . . . . . . . . . . . . . . . . . . . . . Hover . | . . . . . . . . . . . . . . . . . . . . . . . . . Flight 20 | . . . . . . 4 . . . . . 3 . . . 1 1 . . 3 . 1 4 3 Utility 66 | . 5 . . . 8 9 6 . . . . 6 . . . 2 5 1 . 6 . 9 2 7 Device 15 | . . . . . 1 1 1 . . . . 2 . . . 1 1 . . 2 . 3 . 3 Storage 14 | . 5 . . . 5 1 . . . . . 1 . . . 1 1 . . . . . . . Processor 3 | . . . . . . 2 . . . . . . . . . . . . . . . . 1 . Hackware 20 | . . . . . . 4 2 . . . . 2 . . . . 3 . . 1 . 4 . 4 Protection 14 | . . . . . 2 1 3 . . . . 1 . . . . . 1 . 3 . 2 1 . Artifact . | . . . . . . . . . . . . . . . . . . . . . . . . . Weapon 49 | . 6 . 1 2 21 4 1 . . 3 . 2 1 . . . . 1 . 2 . 3 1 1 Energy Gun 13 | . 4 . 1 1 7 . . . . . . . . . . . . . . . . . . . Energy Cannon . | . . . . . . . . . . . . . . . . . . . . . . . . . Ballistic Gun 7 | . 1 . . 1 5 . . . . . . . . . . . . . . . . . . . Ballistic Cannon 2 | . . . . . 2 . . . . . . . . . . . . . . . . . . . Launcher 4 | . 1 . . . 1 1 . . . . . 1 . . . . . . . . . . . . Special Weapon 1 | . . . . . . . . . . . . . . . . . . . . . . . 1 . Impact Weapon 5 | . . . . . 5 . . . . . . . . . . . . . . . . . . . Slashing Weapon 14 | . . . . . 1 3 1 . . 2 . 1 1 . . . . 1 . 1 . 2 . 1 Piercing Weapon 1 | . . . . . . . . . . . . . . . . . . . . . . 1 . . Special Melee Weapon 2 | . . . . . . . . . . 1 . . . . . . . . . 1 . . . . Unidentified Prototypes 11 | . 1 . . . . 2 . . . . . . . . 1 . 2 . . 4 . . . 1 Parts Lost 37 | . 5 . . 2 15 2 . . . . . 2 . . . . 1 1 . . . 8 1 . Power 7 | . . . . . 4 . . . . . . 1 . . . . . . . . . 2 . . Propulsion 9 | . 2 . . . 5 1 . . . . . . . . . . . . . . . 1 . . Utility 8 | . . . . . 1 1 . . . . . . . . . . . 1 . . . 4 1 . Weapon 13 | . 3 . . 2 5 . . . . . . 1 . . . . 1 . . . . 1 . . Highest Loss Streak 7 | . 2 . . 1 7 1 . . . . . 2 . . . . 1 2 . . . 4 1 . Average Slot Usage (%) 97 | . 96 100 100 99 97 93 99 100 100 100 100 96 94 94 94 94 94 94 94 94 100 96 78 93 Engine 7 | . 14 14 14 14 8 . . . . . . . 5 5 5 1 . . . . . . . . Treads 5 | . 26 19 . . . . . . . . . . . . . . . . . . . . . . Leg 12 | . . 8 28 28 26 . . . . . . . . . . . . . . . . . . . Flight 6 | . . . . . . 22 20 20 20 20 20 13 11 11 11 11 15 15 15 15 21 18 12 15 Device 1 | . . . . . 3 . . . . . . . . . . . . . . . . . . 6 Storage 22 | . 26 28 28 28 34 8 6 6 6 6 6 6 11 11 11 11 10 10 10 10 10 9 8 8 Processor 2 | . . . . . . 14 6 6 6 6 6 5 5 5 5 5 5 5 5 5 5 4 4 8 Hackware 14 | . . . . . . 23 40 40 40 40 40 46 47 47 47 47 47 43 42 42 42 45 33 39 Protection 3 | . . . . . 5 5 5 6 6 6 6 3 . . . . . 3 5 4 5 2 4 4 Energy Gun 10 | . 18 28 28 26 6 . . . . . . . . . . . . . . . . . . . Ballistic Gun 3 | . 9 . . 1 6 . . . . . . . . . . . . . . . . . . . Slashing Weapon 4 | . . . . . 2 8 13 13 13 11 13 10 11 11 11 11 10 10 10 9 10 6 7 7 Naked Turns . | . . . . . . . . . . . . . . . . . . . . . . . . . Heaviest Build 133 | 12 58 62 63 63 133 125 20 20 20 20 20 26 28 28 28 35 35 37 37 38 37 41 41 44 Greatest Support 84 | 40 40 40 30 30 50 40 20 20 20 20 20 35 34 34 34 35 42 42 42 47 40 41 49 84 Greatest Overweight (x) 3 | . 1 3 2 2 3 3 . . . . . . . . . . . . . . . . 1 . Average Overweight (x) . | . . 1 2 1 2 . . . . . . . . . . . . . . . . . . . Largest Inventory Capacity 38 | 6 18 18 18 18 34 38 8 8 8 8 8 12 12 12 12 12 12 12 12 12 12 12 12 12 Average Capacity 18 | 6 14 18 18 18 31 9 8 8 8 8 8 9 12 12 12 11 11 12 12 12 12 12 12 12 Most Carried 34 | 6 18 18 18 18 34 34 8 8 8 8 8 12 10 11 12 12 12 11 11 12 12 12 12 12 Average Carried 18 | 6 13 17 17 17 30 8 7 8 8 8 8 8 9 10 11 11 10 10 11 11 12 11 8 11 Final Capacity 34 | 6 18 18 18 18 34 8 8 8 8 8 8 12 12 12 12 12 12 12 12 12 12 12 12 12 Final Carried 34 | 6 18 18 15 17 34 8 8 8 8 8 8 10 10 11 12 12 12 11 11 12 12 12 9 12 Class Distribution -------------------- 33% | Mutant 30% | Wizard-Sprinter 29% | Hauler-Mutant 5% | Hacker-Sprinter Dominant Class ---------------- Mutant | -10/Materials Mutant | -10/Mines Mutant | -10/Exiles Mutant | -9/Mines Hauler-Mutant | -8/Materials Hacker-Sprinter | -7/Factory Wizard-Sprinter | -6/Factory Wizard-Sprinter | -6/Lower Caves Wizard-Sprinter | -6/Lower Caves Wizard-Sprinter | -6/Data Miner Wizard-Sprinter | -5/Proximity Caves Wizard-Sprinter | -5/Factory Wizard-Sprinter | -5/Upper Caves Wizard-Sprinter | -5/Upper Caves Wizard-Sprinter | -5/Zhirov Wizard-Mutant | -4/Proximity Caves Wizard-Sprinter | -4/Factory Wizard-Sprinter | -4/Upper Caves Wizard-Sprinter | -4/Upper Caves Wizard-Sprinter | -4/Warlord Wizard-Sprinter | -3/Proximity Caves Wizard-Sprinter | -3/Research Wizard-Sprinter | -2/Research Wizard-Sprinter | -1/Access Resources | -11 -10 -10 -10 -9 -8 -7 -6 -6 -6 -6 -5 -5 -5 -5 -5 -4 -4 -4 -4 -4 -3 -3 -2 -1 ----------- Run | Scr Mat Min Exi Min Mat Fac Fac Low Low Dat Pro Fac Upp Upp Zhi Pro Fac Upp Upp War Pro Res Res Acc Matter Collected 2266 | 230 228 6 . 68 734 96 42 122 . . 11 102 37 . . 60 60 23 . 23 . 121 178 125 Remotely . | . . . . . . . . . . . . . . . . . . . . . . . . . Salvage Created 3845 | . 688 117 . 256 1419 96 65 21 . . . 102 122 . . . 451 . . . . 256 . 252 Parts 172 | . 42 8 . 4 61 6 6 4 . . . 2 . . . . 14 . . . . 19 . 6 Haulers Intercepted 14 | . 2 . . . 6 1 . . . . . 1 . . . . 1 . . . . 1 . 2 Recyclers Shooed 2 | . 1 . . 1 . . . . . . . . . . . . . . . . . . . . Parts Field Recycled . | . . . . . . . . . . . . . . . . . . . . . . . . . Retrieved Matter . | . . . . . . . . . . . . . . . . . . . . . . . . . Parts Self-Destructed 18 | . . . . . . . . 8 3 . 2 . . 1 . . . 4 . . . . . . Prevented 5 | . . . . . . . . . 1 . . . . . . . . . . 4 . . . . Kills | -11 -10 -10 -10 -9 -8 -7 -6 -6 -6 -6 -5 -5 -5 -5 -5 -4 -4 -4 -4 -4 -3 -3 -2 -1 ------- Run | Scr Mat Min Exi Min Mat Fac Fac Low Low Dat Pro Fac Upp Upp Zhi Pro Fac Upp Upp War Pro Res Res Acc Combat Hostiles Destroyed 50 | . 17 2 . 6 21 1 . 1 . . . . . . . . . . . . . 2 . . Melee 3 | . . . . . 1 1 . 1 . . . . . . . . . . . . . . . . Guns 37 | . 15 1 . 6 15 . . . . . . . . . . . . . . . . . . . Cannons 1 | . . . . . 1 . . . . . . . . . . . . . . . . . . . AOE 8 | . 2 . . . 4 . . . . . . . . . . . . . . . . 2 . . Classes Destroyed 12 | . 3 1 . 3 3 . 1 . . . . . . . . . . . . . . 1 . . Worker 2 | . . . . 1 . . . . . . . . . . . . . . . . . 1 . . Hauler 14 | . 2 . . . 6 1 . . . . . 1 . . . . 1 . . . . 1 . 2 Recycler 4 | . . . . 1 1 . . . . . . . . . . . 2 . . . . . . . Operator 12 | . . . . . 5 1 2 . . . . . . . . . 1 . . . . 2 . 1 Watcher 3 | . . . . . . . 1 . . . . . . . . . 1 . . . . 1 . . Swarmer 7 | . 5 . . . . 1 . 1 . . . . . . . . . . . . . . . . Grunt 24 | . 12 . . 1 11 . . . . . . . . . . . . . . . . . . . Duelist 2 | . . . . . 2 . . . . . . . . . . . . . . . . . . . Sentry 9 | . . 2 . . 7 . . . . . . . . . . . . . . . . . . . Hunter 1 | . . . . . 1 . . . . . . . . . . . . . . . . . . . Programmer 2 | . . . . . . . . . . . . . . . . . . . . . . 2 . . Packrat 2 | . . . . . . . . . . . . . 2 . . . . . . . . . . . Assembled 5 | . . . . 5 . . . . . . . . . . . . . . . . . . . . Best Kill Streak 4 | . 3 2 . 3 4 1 1 1 . . . 1 . . . . 2 . . . . 4 . 1 Combat Bots Only 3 | . 3 2 . 3 3 1 . 1 . . . . . . . . . . . . . 2 . . Max Kills in Single Turn 4 | . 2 1 . 1 2 1 1 1 . . . 1 1 . . . 1 . . . . 4 . 1 Gunslinging . | . . . . . . . . . . . . . . . . . . . . . . . . . Exploded 2 | . 2 . . . 2 . . . . . . . . . . . . . . . . 2 . . Melee 1 | . . . . . 1 1 . 1 . . . . . . . . . . . . . . . . Uniques/NPCs Destroyed . | . . . . . . . . . . . . . . . . . . . . . . . . . Combat | -11 -10 -10 -10 -9 -8 -7 -6 -6 -6 -6 -5 -5 -5 -5 -5 -4 -4 -4 -4 -4 -3 -3 -2 -1 -------- Run | Scr Mat Min Exi Min Mat Fac Fac Low Low Dat Pro Fac Upp Upp Zhi Pro Fac Upp Upp War Pro Res Res Acc Damage Taken 5897 | . 921 141 . 382 2215 255 28 66 55 . . 206 . 64 . 135 87 113 140 114 80 801 94 . Core 1057 | . 118 22 . 56 272 110 8 31 19 . . 42 . . . 50 . 21 39 . 39 230 . . Absorbed by Shields . | . . . . . . . . . . . . . . . . . . . . . . . . . Core Remaining (%) 80 | 100 . . . 21 50 84 . . . . 93 . . . . 90 . . . . 84 82 100 100 Volleys Fired 193 | . 79 6 . 21 84 . . . . . . . . . . . . . . . . . 3 . Largest 2 | . 2 2 . 2 2 . . . . . . . . . . . . . . . . . 1 . Hottest 101 | . 85 85 . 90 101 . . . . . . . . . . . . . . . . . 50 . Shots Fired 367 | . 155 12 . 40 157 . . . . . . . . . . . . . . . . . 3 . Gun 340 | . 154 12 . 40 134 . . . . . . . . . . . . . . . . . . . Cannon 20 | . . . . . 20 . . . . . . . . . . . . . . . . . . . Launcher 4 | . 1 . . . 3 . . . . . . . . . . . . . . . . . . . Special 3 | . . . . . . . . . . . . . . . . . . . . . . . 3 . Kinetic 187 | . 91 . . 3 93 . . . . . . . . . . . . . . . . . . . Thermal 76 | . 44 . . . 32 . . . . . . . . . . . . . . . . . . . Explosive 4 | . 1 . . . 3 . . . . . . . . . . . . . . . . . . . Electromagnetic 97 | . 19 12 . 37 29 . . . . . . . . . . . . . . . . . . . Robot Hit Streak 19 | . 19 8 . 11 19 . . . . . . . . . . . . . . . . . 4 . Robot Miss Streak 4 | . 2 1 . 3 4 . . . . . . . . . . . . . . . . . . . Penetration Max . | . . . . . . . . . . . . . . . . . . . . . . . . . Secondary Targets 2 | . 2 . . . . . . . . . . . . . . . . . . . . . . . Max Gunslinging Chain 1 | . 1 . . . . . . . . . . . . . . . . . . . . . . . Shots Hit Robots 351 | . 114 11 . 34 124 12 6 2 . 1 . 2 5 . . . 9 . . 3 1 15 3 9 Core Hits 147 | . 43 3 . 16 56 3 2 1 . . . 1 2 . . . 5 . . . . 11 . 4 Critical Hits 3 | . 1 . . . . . . . . . . . . . . . . . . . . . . 2 Critical Kills 1 | . . . . . . . . . . . . . . . . . . . . . . . . 1 Critical Parts Destroyed 2 | . 1 . . . . . . . . . . . . . . . . . . . . . . 1 Melee Attacks 498 | . . . . . 49 79 34 4 9 1 10 18 6 9 . 5 45 . . 11 2 122 20 74 Impact 22 | . . . . . 22 . . . . . . . . . . . . . . . . . . . Slashing 452 | . . . . . 27 79 34 4 9 . 10 18 6 9 . 5 45 . . 8 2 102 20 74 Piercing 20 | . . . . . . . . . . . . . . . . . . . . . . 20 . . Sneak Attacks 36 | . . . . . 10 2 2 . . 1 . 1 1 . . . 6 . . 3 1 4 . 5 Combat Hostiles . | . . . . . . . . . . . . . . . . . . . . . . . . . Follow-up Attacks 10 | . . . . . . . 1 . . . . 1 1 . . . 1 . . . . 3 . 3 Damage Inflicted 10969 | . 1224 158 . 561 3865 644 438 65 . . . 144 269 . . . 913 . . . 173 1679 . 836 Guns 3415 | . 1122 158 . 394 1741 . . . . . . . . . . . . . . . . . . . Cannons 234 | . . . . . 234 . . . . . . . . . . . . . . . . . . . Explosions 1540 | . 102 . . 167 659 . . . . . . . . . . . . . . . . 612 . . Melee 5767 | . . . . . 1231 644 438 65 . . . 144 269 . . . 913 . . . 173 1054 . 836 Ramming 13 | . . . . . . . . . . . . . . . . . . . . . . 13 . . Kinetic 1756 | . 580 . . 32 1144 . . . . . . . . . . . . . . . . . . . Thermal 1266 | . 375 . . 167 724 . . . . . . . . . . . . . . . . . . . Explosive 1004 | . 102 . . . 334 . . . . . . . . . . . . . . . . 568 . . Electromagnetic 1163 | . 167 158 . 362 432 . . . . . . . . . . . . . . . . 44 . . Impact . | . . . . . . . . . . . . . . . . . . . . . . . . . Slashing 5767 | . . . . . 1231 644 438 65 . . . 144 269 . . . 913 . . . 173 1054 . 836 Piercing . | . . . . . . . . . . . . . . . . . . . . . . . . . Highest Corruption 5 | . . . . . . 1 . . . . . . . . . . . 1 1 2 . 5 . . Average Corruption 3 | . . . . . . 1 . . . . . . . . . . . 1 1 1 . 4 . . Corruption Purged . | . . . . . . . . . . . . . . . . . . . . . . . . . Effects 5 | . . . . . . . . . . . . . . . . . . . 1 . . 4 . . Energy Discharges 2 | . . . . . . . . . . . . . . . . . . . 1 . . 1 . . Data Loss (minor) 1 | . . . . . . . . . . . . . . . . . . . . . . 1 . . Targeting Errors 2 | . . . . . . . . . . . . . . . . . . . . . . 2 . . Overload Shots . | . . . . . . . . . . . . . . . . . . . . . . . . . Overflow Damage 1903 | . . . . 61 627 99 221 . . . . . 171 . . . 139 . . . 133 305 . 147 Projectiles . | . . . . . . . . . . . . . . . . . . . . . . . . . Explosions 105 | . . . . 61 44 . . . . . . . . . . . . . . . . . . . Melee 1798 | . . . . . 583 99 221 . . . . . 171 . . . 139 . . . 133 305 . 147 Knockbacks 3 | . . . . . 3 . . . . . . . . . . . . . . . . . . . Impact . | . . . . . . . . . . . . . . . . . . . . . . . . . Kinetic 2 | . . . . . 2 . . . . . . . . . . . . . . . . . . . Secondary 1 | . . . . . 1 . . . . . . . . . . . . . . . . . . . Self-Inflicted Damage 214 | . . . . 72 136 . . . . . . . . . . . . . . . . 6 . . Shots 5 | . . . . 2 3 . . . . . . . . . . . . . . . . . . . Rammed 1 | . . . . . . . . . . . . . . . . . . . . . . 1 . . Targets Rammed 1 | . . . . . . . . . . . . . . . . . . . . . . 1 . . Kicked . | . . . . . . . . . . . . . . . . . . . . . . . . . Crushed . | . . . . . . . . . . . . . . . . . . . . . . . . . Highest Temperature 357 | . 217 189 . 357 230 . . . . . . . . . . . . . . 6 5 . 51 85 Average Temperature 75 | . 51 99 . 116 77 . . . . . . . . . . . . . . 6 3 . 31 50 Received Heat Transfer 1644 | . 444 45 . 63 756 96 9 9 27 . . 18 . . . 9 9 9 21 18 18 84 9 . Siege Activations . | . . . . . . . . . . . . . . . . . . . . . . . . . Robots Corrupted 1 | . . 1 . . . . . . . . . . . . . . . . . . . . . . Combat Hostiles 1 | . . 1 . . . . . . . . . . . . . . . . . . . . . . Parts Fried 2 | . . 2 . . . . . . . . . . . . . . . . . . . . . . Impact Corruptions . | . . . . . . . . . . . . . . . . . . . . . . . . . Robots Melted . | . . . . . . . . . . . . . . . . . . . . . . . . . Combat Hostiles . | . . . . . . . . . . . . . . . . . . . . . . . . . Parts Melted 6 | . 1 . . 1 4 . . . . . . . . . . . . . . . . . . . Heat Transferred 2472 | . 910 . . 200 1362 . . . . . . . . . . . . . . . . . . . Parts Sabotaged . | . . . . . . . . . . . . . . . . . . . . . . . . . Parts Stolen . | . . . . . . . . . . . . . . . . . . . . . . . . . Parts Stripped . | . . . . . . . . . . . . . . . . . . . . . . . . . Power Chain Reactions 6 | . . . . 2 4 . . . . . . . . . . . . . . . . . . . Missiles Intercepted . | . . . . . . . . . . . . . . . . . . . . . . . . . Alert | -11 -10 -10 -10 -9 -8 -7 -6 -6 -6 -6 -5 -5 -5 -5 -5 -4 -4 -4 -4 -4 -3 -3 -2 -1 ------- Run | Scr Mat Min Exi Min Mat Fac Fac Low Low Dat Pro Fac Upp Upp Zhi Pro Fac Upp Upp War Pro Res Res Acc Peak Influence 700 | . 186 97 . 20 346 462 254 . . . . 467 . . . . 421 . . . . 700 436 464 Average Influence 100 | . 84 23 . 2 123 114 97 . . . . 46 . . . . 61 . . . . 115 157 272 Maximum Alert Level 3 | . . . . . 1 2 1 . . . . 2 . . . . 2 . . . . 3 2 2 Low Security (%) 88 | 100 100 100 . 100 88 87 66 . . . . 97 . . . . 94 . . . . 90 64 32 Level 1 8 | . . . . . 11 10 33 . . . . . . . . . . . . . . 3 9 48 Level 2 2 | . . . . . . 1 . . . . . 2 . . . . 5 . . . . 4 26 19 Level 3 . | . . . . . . . . . . . . . . . . . . . . . . . . . Level 4 . | . . . . . . . . . . . . . . . . . . . . . . . . . Level 5 . | . . . . . . . . . . . . . . . . . . . . . . . . . High Security . | . . . . . . . . . . . . . . . . . . . . . . . . . Max Security . | . . . . . . . . . . . . . . . . . . . . . . . . . Squads Dispatched 24 | . 3 . . . 5 6 . . . . . 1 . . . . 3 . . . . 1 3 2 Investigation 10 | . 3 . . . 2 4 . . . . . . . . . . . . . . . . 1 . Extermination 3 | . . . . . . . . . . . . . . . . . 1 . . . . 1 . 1 Reinforcement 9 | . . . . . 2 2 . . . . . . . . . . 2 . . . . . 2 1 Assault 1 | . . . . . . . . . . . . 1 . . . . . . . . . . . . Garrison 1 | . . . . . 1 . . . . . . . . . . . . . . . . . . . Intercept . | . . . . . . . . . . . . . . . . . . . . . . . . . Construction Impeded 1 | . . . . . 1 . . . . . . . . . . . . . . . . . . . Haulers Reinforced 4 | . . . . . . 1 . . . . . . . . . . 1 . . . . . 1 1 Stealth | -11 -10 -10 -10 -9 -8 -7 -6 -6 -6 -6 -5 -5 -5 -5 -5 -4 -4 -4 -4 -4 -3 -3 -2 -1 --------- Run | Scr Mat Min Exi Min Mat Fac Fac Low Low Dat Pro Fac Upp Upp Zhi Pro Fac Upp Upp War Pro Res Res Acc Distress Signals 13 | . . . . 1 1 . 1 . . . . 1 . . . . . . . . . 3 6 . Communications Jammed 3 | . . . . . . . . . . . . . . . . . . . . . . . . 3 Distress Signals 3 | . . . . . . . . . . . . . . . . . . . . . . . . 3 Times Spotted 266 | . 28 4 1 9 42 18 9 6 7 . 3 16 . 7 . 5 13 8 4 10 7 41 17 11 Peak Tracking Total 18 | . 4 3 2 3 5 5 4 4 3 . 3 9 . 7 . 4 4 5 4 10 10 18 13 7 Tactical Retreats 44 | . 5 1 . 2 1 8 1 1 3 . . 2 . 1 . 1 2 2 2 . 2 9 1 . Traps | -11 -10 -10 -10 -9 -8 -7 -6 -6 -6 -6 -5 -5 -5 -5 -5 -4 -4 -4 -4 -4 -3 -3 -2 -1 ------- Run | Scr Mat Min Exi Min Mat Fac Fac Low Low Dat Pro Fac Upp Upp Zhi Pro Fac Upp Upp War Pro Res Res Acc Traps Triggered 3 | . 1 . . . . 1 1 . . . . . . . . . . . . . . . . . Indirectly . | . . . . . . . . . . . . . . . . . . . . . . . . . Trap Hack Attempts . | . . . . . . . . . . . . . . . . . . . . . . . . . Triggered . | . . . . . . . . . . . . . . . . . . . . . . . . . Disarmed . | . . . . . . . . . . . . . . . . . . . . . . . . . Reprogrammed 10 | . . . . . . . . . . . . . . . . . . . . . . 10 . . Reused 2 | . . . . . . . . . . . . . . . . . . . . . . 2 . . Traps Extracted . | . . . . . . . . . . . . . . . . . . . . . . . . . Installed 3 | . . . 3 . . . . . . . . . . . . . . . . . . . . . Triggered 6 | . . . . . . . . 1 1 . . . . 1 . . . . . . 1 2 . . Machines | -11 -10 -10 -10 -9 -8 -7 -6 -6 -6 -6 -5 -5 -5 -5 -5 -4 -4 -4 -4 -4 -3 -3 -2 -1 ---------- Run | Scr Mat Min Exi Min Mat Fac Fac Low Low Dat Pro Fac Upp Upp Zhi Pro Fac Upp Upp War Pro Res Res Acc Machines Disabled 13 | . . 1 . . 6 . 1 . . . . . . . . . . . . . . 5 . . Max in Single Turn 3 | . . 1 . . 1 . 1 . . . . . . . . . . . . . . 3 . . Garrison Access 8 | . . . . . . 2 1 . . . . . . . . . 1 . . . . 2 1 1 Machines Sabotaged . | . . . . . . . . . . . . . . . . . . . . . . . . . Garrisons Compromised . | . . . . . . . . . . . . . . . . . . . . . . . . . Overloaded Fab Kills . | . . . . . . . . . . . . . . . . . . . . . . . . . Fab Network Shutdowns 4 | . . . . . . 1 . . . . . 1 . . . . 1 . . . . 1 . . Hacking | -11 -10 -10 -10 -9 -8 -7 -6 -6 -6 -6 -5 -5 -5 -5 -5 -4 -4 -4 -4 -4 -3 -3 -2 -1 --------- Run | Scr Mat Min Exi Min Mat Fac Fac Low Low Dat Pro Fac Upp Upp Zhi Pro Fac Upp Upp War Pro Res Res Acc Machines Accessed 109 | . 10 . 2 . 9 17 7 . 1 4 . 7 1 . 4 . 11 . . 7 . 18 6 5 Terminals 60 | . 8 . . . 6 11 5 . . . . 3 1 . . . 6 . . . . 12 5 3 Fabricators 8 | . . . . . . 1 1 . . . . 3 . . . . 1 . . . . 2 . . Repair Stations 1 | . . . . . . . . . . . . . . . . . 1 . . . . . . . Recycling Units 7 | . 2 . . . 2 2 . . . . . . . . . . . . . . . . . 1 Scanalyzers 7 | . . . . . 1 1 . . . . . 1 . . . . 2 . . . . 2 . . Garrison Access 8 | . . . . . . 2 1 . . . . . . . . . 1 . . . . 2 1 1 Total Hacks 454 | . 31 . 2 . 30 55 33 . 1 24 . 51 3 . 17 . 55 . . 24 . 82 36 10 Successful 383 | . 19 . 2 . 22 33 30 . 1 24 . 41 3 . 17 . 54 . . 24 . 73 30 10 Failed 69 | . 12 . . . 8 21 3 . . . . 10 . . . . 1 . . . . 9 5 . Catastrophic 5 | . . . . . . 1 . . . . . 3 . . . . . . . . . 1 . . Database Lockouts 2 | . . . . . . 1 . . . . . . . . . . . . . . . . 1 . Manual 182 | . 18 . 1 . 19 17 16 . . . . 31 2 . . . 14 . . 1 . 34 26 3 Terminals 292 | . 22 . . . 24 40 25 . . . . 37 3 . . . 31 . . . . 68 34 8 Fabricators 34 | . . . . . . 3 6 . . . . 11 . . . . 6 . . . . 8 . . Repair Stations 2 | . . . . . . . . . . . . . . . . . 2 . . . . . . . Recycling Units 16 | . 9 . . . 4 2 . . . . . . . . . . . . . . . . . 1 Scanalyzers 32 | . . . . . 2 8 . . . . . 3 . . . . 15 . . . . 4 . . Garrison Access 10 | . . . . . . 2 2 . . . . . . . . . 1 . . . . 2 2 1 Terminal Hacks 235 | . 8 . 2 . 8 12 16 . 1 24 . 23 2 . 17 . 21 . . 24 . 42 29 6 Record 24 | . . . 1 . . . . . 1 11 . . 1 . 5 . . . . 5 . . . . Part Schematic 23 | . . . . . . 1 3 . . 7 . 3 . . 4 . . . . . . 4 1 . Robot Schematic 3 | . . . . . . . . . . 3 . . . . . . . . . . . . . . Robot Analysis 11 | . . . . . . . . . . . . 5 . . 4 . . . . . . 2 . . Prototype ID Bank 48 | . . . . . . 2 1 . . 3 . . . . 4 . 1 . . 17 . 7 13 . Open Door 3 | . . . . . . . . . . . . . . . . . . . . 2 . . . 1 Level Access Points 3 | . . . . . . . . . . . . . . . . . . . . . . 1 1 1 Branch Access Points 6 | . . . . . . 1 1 . . . . 1 . . . . 2 . . . . 1 . . Emergency Access Points 3 | . . . . . 1 . . . . . . . . . . . 1 . . . . 1 . . Machine Index 5 | . . . . . . 1 1 . . . . 1 . . . . 1 . . . . 1 . . Terminal Index 6 | . 1 . . . 1 . 1 . . . . 1 . . . . . . . . . 1 . 1 Fabricator Index 3 | . . . . . . . 1 . . . . 1 . . . . . . . . . . . 1 Scanalyzer Index 1 | . . . . . 1 . . . . . . . . . . . . . . . . . . . Garrison Index 1 | . . . . . . . . . . . . . . . . . . . . . . . 1 . Alert Level 2 | . . . . . . . . . . . . . . . . . 1 . . . . . 1 . Unreport Threat 23 | . . . . . . 2 3 . . . . 6 . . . . 2 . . . . 6 4 . Locate Traps 19 | . 4 . . . 2 2 1 . . . . 1 . . . . 4 . . . . 4 1 . Reprogram Traps 2 | . . . . . . . . . . . . . . . . . . . . . . 2 . . Security Status 1 | . . . . . . . . . . . . 1 . . . . . . . . . . . . Recall Extermination 1 | . . . . . . . . . . . . . . . . . . . . . . . . 1 Recall Assault 1 | . . . . . . . . . . . . 1 . . . . . . . . . . . . Hauler Manifests 2 | . . . . . . . . . . . . . . . . . 1 . . . . 1 . . Registered Components 7 | . . . . . 1 1 1 . . . . . . . . . 1 . . . . 1 1 1 Registered Prototypes 3 | . . . . . . . . . . . . . . . . . 1 . . . . 1 1 . Zone Layout 33 | . 3 . . . 2 2 3 . . . . 2 1 . . . 6 . . . . 9 5 . EX-Prototype ID Bank 1 | . . . 1 . . . . . . . . . . . . . . . . . . . . . Fabricator Hacks 25 | . . . . . . 2 5 . . . . 8 . . . . 5 . . . . 5 . . Network Status 1 | . . . . . . . . . . . . 1 . . . . . . . . . . . . Load Schematic 10 | . . . . . . 1 2 . . . . 3 . . . . 2 . . . . 2 . . Build 14 | . . . . . . 1 3 . . . . 4 . . . . 3 . . . . 3 . . Repair Station Hacks 2 | . . . . . . . . . . . . . . . . . 2 . . . . . . . Scan Component 1 | . . . . . . . . . . . . . . . . . 1 . . . . . . . Repair 1 | . . . . . . . . . . . . . . . . . 1 . . . . . . . Recycling Unit Hacks 9 | . 4 . . . 2 2 . . . . . . . . . . . . . . . . . 1 Report Inventory 7 | . 2 . . . 2 2 . . . . . . . . . . . . . . . . . 1 Retrieve Components 2 | . 2 . . . . . . . . . . . . . . . . . . . . . . . Scanalyzer 32 | . . . . . 2 8 . . . . . 3 . . . . 15 . . . . 4 . . Insert Component 17 | . . . . . 1 4 . . . . . 2 . . . . 8 . . . . 2 . . Analyze 15 | . . . . . 1 4 . . . . . 1 . . . . 7 . . . . 2 . . Garrison Access Hacks 8 | . . . . . . 2 1 . . . . . . . . . 1 . . . . 2 1 1 Seal Access 8 | . . . . . . 2 1 . . . . . . . . . 1 . . . . 2 1 1 Unauthorized Hacks 72 | . 7 . . . 10 7 8 . . . . 7 1 . . . 10 . . . . 20 . 2 Terminals 61 | . 6 . . . 8 7 7 . . . . 4 1 . . . 9 . . . . 17 . 2 Track 9 | . 1 . . . 1 2 1 . . . . . 1 . . . . . . . . 3 . . Assimilate 13 | . 1 . . . 1 2 1 . . . . . . . . . 3 . . . . 4 . 1 Botnet 27 | . 3 . . . 5 2 4 . . . . 3 . . . . 5 . . . . 4 . 1 Detonate 1 | . . . . . . . . . . . . . . . . . . . . . . 1 . . Disrupt 4 | . . . . . . 1 . . . . . . . . . . . . . . . 3 . . Operators 7 | . 1 . . . 1 . 1 . . . . 1 . . . . 1 . . . . 2 . . Fabricators 8 | . . . . . . . 1 . . . . 3 . . . . 1 . . . . 3 . . Report 2 | . . . . . . . . . . . . 1 . . . . . . . . . 1 . . Siphon 6 | . . . . . . . 1 . . . . 2 . . . . 1 . . . . 2 . . Repair Stations . | . . . . . . . . . . . . . . . . . . . . . . . . . Recycling Units 3 | . 1 . . . 2 . . . . . . . . . . . . . . . . . . . Tunnel 3 | . 1 . . . 2 . . . . . . . . . . . . . . . . . . . Scanalyzers . | . . . . . . . . . . . . . . . . . . . . . . . . . Garrison Access . | . . . . . . . . . . . . . . . . . . . . . . . . . Data Cores Recovered . | . . . . . . . . . . . . . . . . . . . . . . . . . Used . | . . . . . . . . . . . . . . . . . . . . . . . . . Hacking Detections 60 | . 10 . . . 7 14 4 . . . . 4 1 . . . 7 . . . . 8 2 3 Full Trace Events 4 | . 1 . . . . 3 . . . . . . . . . . . . . . . . . . Feedback Events . | . . . . . . . . . . . . . . . . . . . . . . . . . Feedback Blocked . | . . . . . . . . . . . . . . . . . . . . . . . . . Robot Schematics Acquired 3 | . . . . . . . . . . 3 . . . . . . . . . . . . . . Robots Built . | . . . . . . . . . . . . . . . . . . . . . . . . . Matter . | . . . . . . . . . . . . . . . . . . . . . . . . . Time . | . . . . . . . . . . . . . . . . . . . . . . . . . Total Robot Build Rating . | . . . . . . . . . . . . . . . . . . . . . . . . . Part Schematics Acquired 36 | . . . . . 1 5 3 . . 7 . 4 . . 4 . 5 . . . . 6 1 . Parts Built 14 | . . . . . . 1 4 . . . . 4 . . . . 3 . . . . 2 . . Matter 2894 | . . . . . . 146 487 . . . . 744 . . . . 581 . . . . 936 . . Time 1048 | . . . . . . 36 170 . . . . 347 . . . . 199 . . . . 296 . . Total Part Build Rating 75 | . . . . . . 3 14 . . . . 21 . . . . 19 . . . . 18 . . Parts Repaired 1 | . . . . . . . . . . . . . . . . . 1 . . . . . . . Time 43 | . . . . . . . . . . . . . . . . . 43 . . . . . . . Parts Recycled . | . . . . . . . . . . . . . . . . . . . . . . . . . Recycled Matter . | . . . . . . . . . . . . . . . . . . . . . . . . . Retrieved Matter . | . . . . . . . . . . . . . . . . . . . . . . . . . Retrieved Components 13 | . 13 . . . . . . . . . . . . . . . . . . . . . . . Parts Scanalyzed 13 | . . . . . 1 4 . . . . . 1 . . . . 5 . . . . 2 . . Part Schematics Acquired 13 | . . . . . 1 4 . . . . . 1 . . . . 5 . . . . 2 . . Parts Damaged 2 | . . . . . . 1 . . . . . . . . . . 1 . . . . . . . Bothacking | -11 -10 -10 -10 -9 -8 -7 -6 -6 -6 -6 -5 -5 -5 -5 -5 -4 -4 -4 -4 -4 -3 -3 -2 -1 ------------ Run | Scr Mat Min Exi Min Mat Fac Fac Low Low Dat Pro Fac Upp Upp Zhi Pro Fac Upp Upp War Pro Res Res Acc Used RIF Installer . | . . . . . . . . . . . . . . . . . . . . . . . . . Robots Hacked 5 | . . . . . . . . . . 1 . . . . . . . . . 2 . . 2 . Non-combat . | . . . . . . . . . . . . . . . . . . . . . . . . . Combat 5 | . . . . . . . . . . 1 . . . . . . . . . 2 . . 2 . Robot Hacks Applied 5 | . . . . . . . . . . 1 . . . . . . . . . 2 . . 2 . parse_system 5 | . . . . . . . . . . 1 . . . . . . . . . 2 . . 2 . Manual 1 | . . . . . . . . . . . . . . . . . . . . . . . 1 . Relay Couplers Released . | . . . . . . . . . . . . . . . . . . . . . . . . . Robots Rewired . | . . . . . . . . . . . . . . . . . . . . . . . . . Allies Hacked . | . . . . . . . . . . . . . . . . . . . . . . . . . Hacks Repelled . | . . . . . . . . . . . . . . . . . . . . . . . . . Allies | -11 -10 -10 -10 -9 -8 -7 -6 -6 -6 -6 -5 -5 -5 -5 -5 -4 -4 -4 -4 -4 -3 -3 -2 -1 -------- Run | Scr Mat Min Exi Min Mat Fac Fac Low Low Dat Pro Fac Upp Upp Zhi Pro Fac Upp Upp War Pro Res Res Acc Total Allies 9 | . 1 1 . . 1 . 1 . . . 1 . . . . . 1 . . . . 1 1 1 Largest Group 1 | . 1 1 . . 1 . . . . . 1 . . . . . 1 . . . . 1 1 . Highest-Rated Group 367 | . 10 31 . . 10 . . . . . 94 . . . . . 26 . . . . 35 367 . Highest-Rated Ally 367 | . 10 31 . . 10 . . . . . 94 . . . . . 26 . . . . 35 367 . Total Orders . | . . . . . . . . . . . . . . . . . . . . . . . . . Ally Attacks 27 | . . 10 . . . . . . . . 7 . . . . . . . . . . . 10 . Total Damage 4008 | . . 190 . . . . . . . . 278 . . . . . . . . . . . 3540 . Kills 18 | . . 3 . . . . . . . . 1 . . . . . . . . . . . 14 . Allies Corrupted . | . . . . . . . . . . . . . . . . . . . . . . . . . Allies Melted . | . . . . . . . . . . . . . . . . . . . . . . . . . Intel | -11 -10 -10 -10 -9 -8 -7 -6 -6 -6 -6 -5 -5 -5 -5 -5 -4 -4 -4 -4 -4 -3 -3 -2 -1 ------- Run | Scr Mat Min Exi Min Mat Fac Fac Low Low Dat Pro Fac Upp Upp Zhi Pro Fac Upp Upp War Pro Res Res Acc Robot Analysis Total 11 | . . . . . . . . . . . . 5 . . 4 . . . . . . 2 . . Derelict Logs Recovered 9 | . . . . . . . . 1 1 . 1 . . 2 . 2 . 1 1 . . . . . Drone Launches . | . . . . . . . . . . . . . . . . . . . . . . . . . Drone Recoveries . | . . . . . . . . . . . . . . . . . . . . . . . . . Exploration | -11 -10 -10 -10 -9 -8 -7 -6 -6 -6 -6 -5 -5 -5 -5 -5 -4 -4 -4 -4 -4 -3 -3 -2 -1 ------------- Run | Scr Mat Min Exi Min Mat Fac Fac Low Low Dat Pro Fac Upp Upp Zhi Pro Fac Upp Upp War Pro Res Res Acc Turns Passed 12591 | 26 1614 1111 896 564 3725 709 357 162 184 36 134 347 103 141 46 125 436 75 62 280 60 630 254 514 Spaces Moved 13837 | 1 738 580 491 270 1319 1246 644 477 432 99 344 662 277 414 131 314 915 267 230 879 225 1221 505 1156 Core . | . . . . . . . . . . . . . . . . . . . . . . . . . Treads 1136 | 1 738 397 . . . . . . . . . . . . . . . . . . . . . . Legs 2268 | . . 183 491 270 1319 5 . . . . . . . . . . . . . . . . . . Wheels . | . . . . . . . . . . . . . . . . . . . . . . . . . Hover . | . . . . . . . . . . . . . . . . . . . . . . . . . Flight 10433 | . . . . . . 1241 644 477 432 99 344 662 277 414 131 314 915 267 230 879 225 1221 505 1156 Fastest Speed 6 | 160 160 150 180 150 156 29 29 29 29 29 29 29 29 29 29 29 27 27 27 21 21 19 27 6 Average Speed 64 | 160 169 180 180 179 187 29 29 29 29 29 29 29 29 29 29 31 27 27 27 26 21 20 28 21 Slowest Speed 220 | 160 180 210 180 180 220 216 29 29 29 29 29 34 29 29 29 34 34 27 27 27 21 24 89 29 Overloaded Moves 15 | . . . . . . . . . . . . . . . . . . . . . . . . 15 Propulsion Burnouts . | . . . . . . . . . . . . . . . . . . . . . . . . . Robots Hopped 32 | . . . . . . 1 . . . . . 4 . . . . . 1 . 3 . 3 6 14 Cave-ins Triggered . | . . . . . . . . . . . . . . . . . . . . . . . . . Teleports 1 | . . . . . . . . . . . . . . . . . 1 . . . . . . . Exploration Rate (%) 51 | 2 96 99 71 33 77 41 17 76 56 74 60 12 46 64 60 56 23 54 41 86 43 42 19 28 Regions Visited 24 Branch Regions 15 Pre-discovered Areas 12 | . 1 . 1 . 2 . . 1 . 1 . . . . 3 1 . 1 1 . . . . . Known Exits Taken 18 | . . . . . . 1 1 1 1 1 1 1 1 1 1 1 1 1 1 1 1 1 1 . Unknown Exits Taken 6 | 1 1 1 1 1 1 . . . . . . . . . . . . . . . . . . . Scrap Searched 21 | . . 1 . . . . . 2 3 . 1 . 1 4 . 3 . 3 1 . 2 . . . Spaces Dug 378 | . . . . . 21 56 16 1 8 . 8 13 1 7 . 5 25 . . 8 1 142 17 49 Terrain Destroyed 444 | . 14 . . 11 53 56 16 1 8 . 8 13 1 7 . 5 25 . . 8 1 151 17 49 Melee 325 | . . . . . 21 56 16 1 8 . 8 13 1 7 . 5 25 . . 8 1 89 17 49 Projectile . | . . . . . . . . . . . . . . . . . . . . . . . . . AOE 119 | . 14 . . 11 32 . . . . . . . . . . . . . . . . 62 . . Actions | -11 -10 -10 -10 -9 -8 -7 -6 -6 -6 -6 -5 -5 -5 -5 -5 -4 -4 -4 -4 -4 -3 -3 -2 -1 --------- Run | Scr Mat Min Exi Min Mat Fac Fac Low Low Dat Pro Fac Upp Upp Zhi Pro Fac Upp Upp War Pro Res Res Acc Total 16467 | 24 968 638 506 311 2349 1476 773 495 477 103 365 789 289 421 139 329 1043 268 229 909 233 1431 584 1318 Wait 1608 | 21 102 39 5 11 804 93 77 14 38 . 14 87 6 . . . 74 . . . 7 77 41 98 Move 13757 | . 737 579 490 269 1318 1243 643 476 431 98 343 653 276 413 130 313 914 264 229 873 224 1216 495 1130 Hop 24 | . . . . . . 1 . . . . . 4 . . . . . 1 . 2 . 2 3 11 Pick Up 151 | . 25 4 2 6 44 6 10 1 . . . 9 1 1 3 4 8 1 . 4 . 8 7 7 Fast Attach 38 | . 1 2 . . 2 5 1 . . 1 . 3 . . 2 3 3 . . 6 . 4 . 5 Attach 77 | . 5 . . 2 17 12 5 . . . . 6 1 . . . 4 2 . 2 . 7 10 4 Detach 4 | . . . . . . 1 . . . . . 1 . . . . . . . . . . 2 . Swap 54 | 3 8 1 1 . 21 3 1 . . 2 . 3 . . . 1 1 . . 3 . 3 1 2 Drop 126 | . 11 7 5 2 10 34 8 1 . 1 . 9 . . 4 3 6 . . 8 . 8 5 4 Fire 193 | . 79 6 . 21 84 . . . . . . . . . . . . . . . . . 3 . Melee 432 | . . . . . 49 78 28 3 8 1 8 14 5 7 . 5 33 . . 11 2 106 17 57 Ram . | . . . . . . . . . . . . . . . . . . . . . . . . . Kick . | . . . . . . . . . . . . . . . . . . . . . . . . . Crush . | . . . . . . . . . . . . . . . . . . . . . . . . . Escape Stasis . | . . . . . . . . . . . . . . . . . . . . . . . . . Rewire . | . . . . . . . . . . . . . . . . . . . . . . . . . Trap 3 | . . . 3 . . . . . . . . . . . . . . . . . . . . . Miscellaneous . | . . . . . . . . . . . . . . . . . . . . . . . . . Route ------- -11/Scrapyard -10/Materials (discovered 5 exits: [*Mat x3] / [*Min x2]) -10/Mines (discovered 3 exits: [*Mat x2] / *Exi) -10/Exiles -9/Mines -8/Materials (discovered 3 exits: *Fac x3) -7/Factory (discovered 4 exits: *Fac x2 / Low x2) -6/Factory (discovered 5 exits: *Fac / *Low x2 / Ext x2) -6/Lower Caves -6/Lower Caves -6/Data Miner -5/Proximity Caves -5/Factory (discovered 3 exits: Fac / *Upp x2) -5/Upper Caves -5/Upper Caves (discovered 2 exits: *Fac / *Zhi) -5/Zhirov -4/Proximity Caves -4/Factory (discovered 3 exits: *Res / *Upp x2) -4/Upper Caves -4/Upper Caves -4/Warlord -3/Proximity Caves -3/Research (discovered 6 exits: *Res x3 / Arm / *Qua x2) -2/Research (discovered 3 exits: *Acc x3) -1/Access To Epsilon Eridani History --------- Turn | Location | Event 13 | -11/Scrapyard | Discovered new exit (range 2) 27 | -11/Scrapyard | Entered Materials 319 | -10/Materials | Build established: Mutant 517 | -10/Materials | Discovered new exit (range 11) 658 | -10/Materials | Discovered new exit (range 12) 829 | -10/Materials | Discovered new exit (range 15) 992 | -10/Materials | Discovered new exit (range 4) 1302 | -10/Materials | Discovered new exit (range 14) 1641 | -10/Materials | Entered Mines 1644 | -10/Mines | Received a Mining Laser from a helpful Derelict 1649 | -10/Mines | Received a Rocket Launcher from a helpful Derelict 1670 | -10/Mines | Deemed a non-threat by the Exiles lab entrance 1670 | -10/Mines | Discovered new exit (range 5) 1941 | -10/Mines | Found a hidden stash of uninstalled traps 1983 | -10/Mines | Discovered new exit (range 10) 2365 | -10/Mines | Discovered new exit (range 11) 2390 | -10/Mines | Joined a pair of Derelicts in attacking an 0b10 outpost 2397 | -10/Mines | Core integrity fell below 50% 2752 | -10/Mines | Entered Exiles 2797 | -10/Exiles | Met 8R-AWN 2830 | -10/Exiles | Met EX-HEX 2886 | -10/Exiles | Met EX-BIN 3022 | -10/Exiles | Met EX-DEC 3030 | -10/Exiles | Learned location of Zion (-7) 3213 | -10/Exiles | Discovered new exit (range 12) 3339 | -10/Exiles | Aligned with FarCom system 3341 | -10/Exiles | Given EX-Vault access code 3382 | -10/Exiles | Opened EX-Vault 3397 | -10/Exiles | Found Modified TNC 3441 | -10/Exiles | Warned to stay clear of 0b10 Research branches 3458 | -10/Exiles | Exiles lab attacked by MAIN.C 3648 | -10/Exiles | Left Exiles lab with Modified TNC 3648 | -10/Exiles | Entered Mines 3678 | -9/Mines | Assembled infested the area 3682 | -9/Mines | Met a Derelict bent on vengeance 3756 | -9/Mines | Discovered new exit (range 6) 4212 | -9/Mines | Entered Materials 4212 | -8/Materials | Evolved 4 slots: Propulsion x1, Utility x3 4540 | -8/Materials | Build established: Hauler-Mutant 4544 | -8/Materials | Discovered new exit (range 4) 4998 | -8/Materials | Garrison activated, responded to threat 5316 | -8/Materials | Discovered new exit (range 4) 6485 | -8/Materials | Lost 7 parts (1p3n1u2w) 6963 | -8/Materials | Discovered new exit (range 11) 7937 | -8/Materials | Entered Factory 7937 | -7/Factory | Evolved 2 slots: Utility x2 8204 | -7/Factory | Discovered new exit (range 8) 8254 | -7/Factory | Build established: Hacker-Sprinter 8368 | -7/Factory | Identified exit to Lower Caves 8461 | -7/Factory | Central database locked down 8555 | -7/Factory | Discovered new exit (range 6) 8597 | -7/Factory | Fabricated Hacking Suite? 8636 | -7/Factory | Local fabrication network quarantined 8645 | -7/Factory | Identified exit to Factory 8646 | -7/Factory | Entered another Factory area 8646 | -6/Factory | Evolved 2 slots: Utility x2 8698 | -6/Factory | Identified exit to Lower Caves 8698 | -6/Factory | Identified exit to Extension 8714 | -6/Factory | Discovered new exit (range 11) 8717 | -6/Factory | Identified exit to Factory 8770 | -6/Factory | Fabricated Imp. Cesium-ion Thruster? 8857 | -6/Factory | Fabricated Imp. Cesium-ion Thruster? 8900 | -6/Factory | Fabricated Imp. Propulsion Shielding? 8941 | -6/Factory | Build established: Wizard-Sprinter 9003 | -6/Factory | Entered Lower Caves 9150 | -6/Lower Caves | Discovered new exit (range 12) 9165 | -6/Lower Caves | Identified exit to Lower Caves 9165 | -6/Lower Caves | Entered another Lower Caves area 9297 | -6/Lower Caves | Learned location of 1 exit from Factory 9347 | -6/Lower Caves | Discovered new exit (range 6) 9348 | -6/Lower Caves | Identified exit to Data Miner 9349 | -6/Lower Caves | Entered Data Miner 9349 | -6/Data Miner | Discovered new exit (range 6) 9355 | -6/Data Miner | Met Data Miner 9361 | -6/Data Miner | Learned location of Section 7 (-3) 9361 | -6/Data Miner | Acquired the access code to Warlord's prototype stash 9366 | -6/Data Miner | Received God Mode back door access code from Data Miner 9385 | -6/Data Miner | Identified exit to Proximity Caves 9385 | -6/Data Miner | Entered Proximity Caves 9415 | -5/Proximity Caves | Learned location of 1 exit from Factory 9500 | -5/Proximity Caves | Discovered exit to Factory (range 11) 9505 | -5/Proximity Caves | Escorted by Enhanced Grunt 9519 | -5/Proximity Caves | Entered Factory 9519 | -5/Factory | Evolved 2 slots: Utility x2 9520 | -5/Factory | Identified exit to Upper Caves 9520 | -5/Factory | Identified exit to Factory 9666 | -5/Factory | Fabricated Impulse Thruster Array? 9688 | -5/Factory | Fabricated Exp. Cesium-ion Thruster? 9752 | -5/Factory | Fabricated Med. Storage Unit (x1) 9798 | -5/Factory | Fabricated Exp. Cesium-ion Thruster? 9811 | -5/Factory | Local fabrication network quarantined 9819 | -5/Factory | First assault squad dispatched 9866 | -5/Factory | Entered Upper Caves 9953 | -5/Upper Caves | Encountered a Warlord checkpoint 9965 | -5/Upper Caves | Discovered new exit (range 7) 9968 | -5/Upper Caves | Identified exit to Upper Caves 9969 | -5/Upper Caves | Entered another Upper Caves area 9969 | -5/Upper Caves | Discovered exit to Factory (range 16) 10006 | -5/Upper Caves | Spotted B-75 Beast 10027 | -5/Upper Caves | Learned Factory stockpile data 10068 | -5/Upper Caves | Encountered a Warlord checkpoint 10107 | -5/Upper Caves | Discovered new exit (range 13) 10109 | -5/Upper Caves | Learned Factory terminal intel 10110 | -5/Upper Caves | Identified exit to Zhirov 10110 | -5/Upper Caves | Entered Zhirov 10110 | -5/Zhirov | Discovered new exit (range 3) 10122 | -5/Zhirov | Learned location of Quarantine (-3) 10122 | -5/Zhirov | Learned location of Testing (-2) 10122 | -5/Zhirov | Learned location of Command (-1) 10129 | -5/Zhirov | Found Alien Artifact 10145 | -5/Zhirov | Found Alien Artifact 10156 | -5/Zhirov | Identified exit to Proximity Caves 10156 | -5/Zhirov | Entered Proximity Caves 10212 | -4/Proximity Caves | Learned Research trap positions 10215 | -4/Proximity Caves | Spotted B-86 Titan 10278 | -4/Proximity Caves | Discovered exit to Factory (range 12) 10281 | -4/Proximity Caves | Entered Factory 10281 | -4/Factory | Evolved 2 slots: Propulsion x1, Utility x1 10281 | -4/Factory | Identified Transdimensional Reconstructor 10281 | -4/Factory | Warped through subspace 10283 | -4/Factory | Loaded intel: 19 terminal locations 10284 | -4/Factory | Identified Integrated Reactor 10284 | -4/Factory | Installed Integrated Reactor, increased core energy generation (+2%) 10414 | -4/Factory | Identified exit to Upper Caves 10461 | -4/Factory | Found Prototype Hackware 10479 | -4/Factory | Fabricated Adv. Hacking Suite? 10533 | -4/Factory | Identified Exp. Hacking Suite 10538 | -4/Factory | Discovered new exit (range 16) 10577 | -4/Factory | Fabricated Adv. Hacking Suite? 10585 | -4/Factory | Repaired Broken Lgt. Antimatter Reactor? 10672 | -4/Factory | Fabricated Exp. Hacking Suite? 10694 | -4/Factory | Local fabrication network quarantined 10717 | -4/Factory | Entered Upper Caves 10751 | -4/Upper Caves | Encountered a Warlord checkpoint 10791 | -4/Upper Caves | Discovered new exit (range 6) 10792 | -4/Upper Caves | Identified exit to Upper Caves 10792 | -4/Upper Caves | Entered another Upper Caves area 10849 | -4/Upper Caves | Discovered new exit (range 9) 10854 | -4/Upper Caves | Identified exit to Warlord 10854 | -4/Upper Caves | Entered Warlord 10864 | -4/Warlord | System corruption cleaned by Quarantine Array 10893 | -4/Warlord | Opened side exit 10898 | -4/Warlord | Discovered new exit (range 11) 11050 | -4/Warlord | Visited the Vortex Lab 11059 | -4/Warlord | Warlord's base attacked by MAIN.C 11071 | -4/Warlord | Met Warlord 11074 | -4/Warlord | Opened Warlord's prototype stash 11076 | -4/Warlord | Found Prototype Device 11076 | -4/Warlord | Identified Exp. Phase Shifter 11080 | -4/Warlord | Found Prototype Device 11080 | -4/Warlord | Identified Exp. Focal Shield 11085 | -4/Warlord | Found Ghost Barrier 11134 | -4/Warlord | Identified exit to Proximity Caves 11134 | -4/Warlord | Entered Proximity Caves 11154 | -3/Proximity Caves | Spotted B-86 Titan 11188 | -3/Proximity Caves | Discovered new exit (range 15) 11193 | -3/Proximity Caves | Identified exit to Research 11194 | -3/Proximity Caves | Entered Research 11194 | -3/Research | Evolved 2 slots: Utility x2 11195 | -3/Research | Loaded intel: 63 trap records 11200 | -3/Research | Identified exit to Research 11334 | -3/Research | Spotted B-86 Titan 11415 | -3/Research | Discovered new exit (range 15) 11468 | -3/Research | Found Enh. Force Lance 11570 | -3/Research | Fabricated Cld. Q-thruster? 11721 | -3/Research | Lost 3 parts (1p2u) 11729 | -3/Research | Discovered new exit (range 11) 11762 | -3/Research | Identified exit to Armory 11762 | -3/Research | Identified exit to Quarantine 11789 | -3/Research | Local fabrication network quarantined 11795 | -3/Research | Fabricated Cld. Q-thruster? 11813 | -3/Research | Lost 4 parts (1p1n2u) 11824 | -3/Research | Entered another Research area 11824 | -2/Research | Warlord forces began assault on 0b10 11824 | -2/Research | Evolved 2 slots: Utility x2 11830 | -2/Research | Identified exit to Access 11897 | -2/Research | Central database locked down 11927 | -2/Research | Borebot progress halted 11934 | -2/Research | Research machine network offline 12029 | -2/Research | Met up with Warlord 12035 | -2/Research | Took control of God Mode 12035 | -2/Research | Attacked by Warlord forces 12036 | -2/Research | Attacked by Warlord 12036 | -2/Research | Spotted N4-5HU(K) 12036 | -2/Research | Spotted W6-EPQ(K) 12078 | -2/Research | Entered Access 12078 | -1/Access | Evolved 2 slots: Utility x2 12153 | -1/Access | Spotted B-99 Colossus 12275 | -1/Access | Spotted B-99 Colossus 12447 | -1/Access | Identified exit to Surface 12592 | *** | Escaped! Last Messages --------------- [Achievement: l33t h4x0r] 12390_ Acquired Imp. System Shield. 12392_ Acquired 40 matter. 12403_ ALERT: Rogue bot located, Programmers report to Access Zone 4I. 12407_ Connecting with Fabricator... 12419_ Connecting with Terminal... >>Recall(Extermination) Establishing remote squad link... Recalled extermination squad 4UE54FE933. 12447_ Connecting with Terminal... >>Access(Main) Found 1 level access point to Surface: (144,94) Map updated. 12504_ U-05 Engineer builds a Wall. 12566_ W-44 Eye distress signal jammed. 12590_ Connecting with Terminal... >>Open Sealed Barrier opened. 12591_ The Access Shell folds into the floor. Map ----- +----------------------------------------------------+ | ?????????????????????????# #??????????????? | | ?????????????????????????# #??????????????? | | ?????????????????????????# #??????????????? | | ??????????####################/######## #???????? | | ??????????# #???????? | | ??????????# #???????? | | ??????????# #############"###+#+#########???????? | | ??????????# #???######??## #?????????????? | | ??????????# #?? ##### ! #?????????????? | | ??????????# #?? ## " " #?????????????? | | ??????????# #? ##### """ #?????????????? | | ??????????# #? !!]#???# """ #?????????????? | | ??????????# # !!]#???# " #?????????????? | | ??????????# # !!]#???# = #?????????????? | | ??????????# + #???# #?????????????? | | ??????????# # * #???# ! #?????????????? | | ??????????# # #???##########?????????????? | | ??????????# #?########??????????????????????????? | | ??????????# #?????###???????????????????????????? | | ??????????# ####### ##########??????????????????? | | ??????????# """T""" "??????????????????? | | ??????????# w""" """ "????BB????????????? | | ??????????# "????BB????????????? | | ??????????# A "??????????????????? | | ??????????# "" "??????????????????? | | ??????????# @" "??????????????????? | | ??????????# "??????????????????? | | ??????????# "????BB????????????? | | ??????????# "????BB????????????? | | ??????????# "??????????????????? | | ??????????# ####### ##########??????????????????? | | ??????????# ??????###???????????????????????????? | | ??????????# ??????????????Y?????????????????????? | | ??????????# ????????????????????????????????????? | | ??????????# ????????????????????????????????????? | | ??????????# ????????????????????????????????????? | | ??????????# ????????????????????????????????????? | | ??????????? ????????????????????????????????????? | | ?????????????????????????????????????????????????? | | ?????????????????????????????????????????????????? | | ?????????????????????????????????????????????????? | | ?????????????????????????????????????????????????? | | ?????????????????????????????????????????????????? | | ?????????????????????????????????????????????????? | | ?????????????????????????????????????????????????? | | ?????????????????????????????????????????????????? | | ?????????????????????????????????????????????????? | | ?????????????????????????????????????????????????? | | ?????????????????????????????????????????????????? | | ?????????????????????????????????????????????????? | +----------------------------------------------------+ Best States ------------- Heat Dissipation 61 Energy Generation 35 Energy Capacity 275 Matter Stores 300 Matter Capacity 300 Sight Range 16 Terrain Scan Density 10 Jamming Range 16 Armor Coverage 150 Propulsion Shielding 90 Utility Shielding 66 Weapon Shielding 66 Phase Shifting 20 Evasion (%) 86 Target Analysis 8 Recoil Reduction 2 Offensive Hacking 102 Defensive Hacking 44 Item Schematics ----------------- Imp. Flight Unit | -8/Materials | Scanalyzed Hacking Suite | -7/Factory | Hacked Lgt. Nuclear Core | -7/Factory | Scanalyzed Imp. Cesium-ion Thruster | -7/Factory | Scanalyzed System Shield | -7/Factory | Scanalyzed Imp. Utility Shielding | -7/Factory | Scanalyzed Imp. Hacking Suite | -6/Factory | Hacked Imp. System Shield | -6/Factory | Hacked Imp. Propulsion Shielding | -6/Factory | Hacked Combat Drone Bay | -6/Data Miner | Free Lgt. Regenerative Plating | -6/Data Miner | Free Cmb. Gravmag System | -6/Data Miner | Free Exp. Cesium-ion Thruster | -6/Data Miner | Free Cloaking Device | -6/Data Miner | Free Mni. Smartbomb Launcher | -6/Data Miner | Free Plasma Sword | -6/Data Miner | Free Adv. Hacking Suite | -5/Factory | Hacked Adv. System Shield | -5/Factory | Hacked Med. Storage Unit | -5/Factory | Hacked Impulse Thruster Array | -5/Factory | Scanalyzed Assault Drone Bay | -5/Zhirov | Free Exp. Heat Sink | -5/Zhirov | Free Exp. Optical Array | -5/Zhirov | Free Imp. Arc Thrower | -5/Zhirov | Free Exp. Propulsion Shielding | -4/Factory | Scanalyzed Exp. Hacking Suite | -4/Factory | Scanalyzed Lgt. Antimatter Reactor | -4/Factory | Scanalyzed Imp. Datajack | -4/Factory | Scanalyzed Phasing Sabre | -4/Factory | Scanalyzed Exp. Phase Shifter | -3/Research | Scanalyzed Exp. Q-thruster | -3/Research | Hacked Cld. Q-thruster | -3/Research | Hacked Adv. Remote Datajack | -3/Research | Scanalyzed Adv. Heavy Siege Treads | -3/Research | Hacked Lgt. Quantum Reactor | -3/Research | Hacked Graviton Reactor | -2/Research | Hacked Robot Schematics ------------------ S-27 Virus | -6/Data Miner | Free G-50 Soldier | -6/Data Miner | Free I-36 Angel | -6/Data Miner | Free Fabricated ------------ Hacking Suite | x1 | -7/Factory Imp. Cesium-ion Thruster | x1 | -6/Factory Imp. Cesium-ion Thruster | x1 | -6/Factory Imp. Propulsion Shielding | x2 | -6/Factory Impulse Thruster Array | x1 | -5/Factory | Preloaded Exp. Cesium-ion Thruster | x1 | -5/Factory Med. Storage Unit | x1 | -5/Factory Exp. Cesium-ion Thruster | x1 | -5/Factory Adv. Hacking Suite | x1 | -4/Factory Adv. Hacking Suite | x1 | -4/Factory Exp. Hacking Suite | x1 | -4/Factory Cld. Q-thruster | x1 | -3/Research Cld. Q-thruster | x1 | -3/Research Alien Tech Used ----------------- Transdimensional Reconstructor Integrated Reactor Achievements -------------- Godhack Whoosh! l33t h4x0r Challenges ------------ None Game ------ Seed FocalAutogunMagmablaster Manual? 0 Play Time 03:53:27 Cumulative 228.9 hours Start 2020.04.14 @ 09:26:20 End 2020.04.14 @ 13:35:53 Sessions 1 Manual Loads 0 Difficulty Rogue Special Mode None Game No. 127 Rogue 119 Adventurer 8 Explorer 0 Win Type 0 Total 11 Types 9/0/0/2/0/0/0 Lore% 77 Gallery% 77 Achievement% 65 Wizard Run 0 Options --------- ASCII 0 Keyboard 0 Movement Mouse Keybinds 0 Fullscreen 2 Font 14/SmallcapsGlow Map View 72x52 Tactical HUD 1 Map Filters NONE Filters NONE Steam 0 RUN: 263e200a-e744-401c-9f94-8a820b2fe952